bitfinex-derivatives/quotes_BTCF0:USTF0_20251110
["timestamp","ask_amount","ask_price","bid_price","bid_amount"]
[1762796346799,1.277e-05,105730.0,105720.0,0.39628777]
[1762796347199,1.277e-05,105730.0,105720.0,0.22386306]
[1762796347805,0.09463537,105730.0,105720.0,0.22386306]
[1762796348003,1.277e-05,105730.0,105720.0,0.17825306]
[1762796348801,0.09463537,105730.0,105720.0,0.17825306]
[1762796349002,0.09463537,105730.0,105720.0,0.22386306]
[1762796349505,0.14003537,105730.0,105720.0,0.12923146]
[1762796349805,0.14003537,105730.0,105720.0,0.22386306]
[1762796350395,0.02247277,105730.0,105720.0,0.22386306]
[1762796350596,1.277e-05,105730.0,105720.0,0.17825306]
[1762796351702,0.09463537,105730.0,105720.0,0.17825306]
[1762796351908,1.277e-05,105730.0,105720.0,0.17825306]
[1762796353099,1.277e-05,105730.0,105720.0,0.35067777]
[1762796353304,1.277e-05,105730.0,105720.0,0.17825306]
[1762796354897,1.277e-05,105730.0,105720.0,0.27223164]
[1762796356502,0.14003547,105730.0,105720.0,0.22321004]
[1762796356698,0.14003547,105730.0,105720.0,0.12923146]
[1762796357807,0.10596341,105730.0,105720.0,0.22386306]
[1762796358204,0.0454,105730.0,105720.0,0.22386306]
[1762796358398,0.1400226,105730.0,105720.0,0.15675963]
[1762796359707,0.02246,105730.0,105720.0,0.25073821]
[1762796359901,0.1387226,105730.0,105720.0,0.33480236]
[1762796360709,0.1387226,105730.0,105720.0,0.14619218]
[1762796360906,0.23270118,105730.0,105720.0,0.21345359]
[1762796361204,0.23270118,105730.0,105720.0,0.06212803]
[1762796363603,0.23270118,105730.0,105720.0,0.15675953]
[1762796363802,0.23933118,105730.0,105720.0,0.04880803]
[1762796364005,0.23270118,105730.0,105720.0,0.15688953]
[1762796364508,0.23270118,105730.0,105720.0,0.06225803]
[1762796365911,0.23933118,105730.0,105720.0,0.00319803]
[1762796366214,0.23270118,105730.0,105720.0,0.05960803]
[1762796366400,0.1387225,105730.0,105720.0,0.15423953]
[1762796366708,0.1387225,105730.0,105720.0,0.05960803]
[1762796367013,0.2327387,105730.0,105720.0,0.05960803]
[1762796367806,0.2327387,105730.0,105720.0,0.15362423]
[1762796368009,0.2327387,105730.0,105720.0,0.05960803]
[1762796370916,0.1387225,105730.0,105720.0,0.05960803]
[1762796371102,0.2327387,105730.0,105720.0,0.05960803]
[1762796372315,0.2327387,105730.0,105720.0,0.12686944]
[1762796372512,0.2393687,105730.0,105720.0,0.11341944]
[1762796372715,0.2393687,105730.0,105720.0,0.05960803]
[1762796373109,0.2327387,105730.0,105720.0,0.05960803]
[1762796373417,0.2327387,105730.0,105720.0,0.12686944]
[1762796378717,0.1387225,105730.0,105720.0,0.12686944]
[1762796378916,0.2327387,105730.0,105720.0,0.12686944]
[1762796389333,0.2327387,105730.0,105720.0,0.22088564]
[1762796390241,0.2327387,105730.0,105720.0,0.12686944]
[1762796390536,0.2327387,105730.0,105720.0,0.22088564]
[1762796392438,0.2327387,105730.0,105720.0,0.12686944]
[1762796400734,0.3333849,105730.0,105720.0,0.09171944]
[1762796400939,0.3333849,105730.0,105720.0,0.06826141]
[1762796401137,0.1466914,105720.0,105710.0,0.08406415]
[1762796401446,0.1465303,105710.0,105700.0,0.11905755]
[1762796401743,0.6626827,105710.0,105700.0,0.00014246]
[1762796401942,0.6626827,105710.0,105680.0,0.27007269]
[1762796401943,0.1399183,105690.0,105680.0,0.27007269]
[1762796402136,0.04526,105690.0,105680.0,0.36628692]
[1762796402336,0.04526,105690.0,105680.0,0.34138803]
[1762796402535,0.04526,105690.0,105680.0,0.24737183]
[1762796402733,0.1392762,105690.0,105680.0,0.24737183]
[1762796403342,0.02218246,105700.0,105690.0,0.1510583]
[1762796403642,0.00014246,105700.0,105690.0,0.32415432]
[1762796403854,0.20606446,105710.0,105700.0,0.0564]
[1762796404039,0.20606446,105710.0,105700.0,0.24726353]
[1762796404238,0.20606446,105710.0,105700.0,0.15261423]
[1762796404646,0.20606446,105710.0,105700.0,0.24726353]
[1762796404944,0.20606446,105710.0,105700.0,0.06059803]
[1762796405136,0.1399058,105710.0,105700.0,0.15524733]
[1762796405337,0.1886528,105720.0,105700.0,0.24926353]
[1762796405542,0.1166714,105720.0,105710.0,0.2450565]
[1762796405839,0.1398889,105730.0,105720.0,0.01348]
[1762796406044,0.2339051,105730.0,105720.0,0.05859803]
[1762796406948,0.3279213,105730.0,105720.0,0.05859803]
[1762796407439,0.3345513,105730.0,105710.0,0.01362246]
[1762796407646,0.3279238,105720.0,105710.0,0.05874049]
[1762796409449,0.3279238,105720.0,105710.0,0.05974049]
[1762796409742,0.2339076,105720.0,105710.0,0.05974049]
[1762796410248,0.3279238,105720.0,105710.0,0.05974049]
[1762796410937,0.2339076,105720.0,105710.0,0.05974049]
[1762796411142,0.2339076,105720.0,105710.0,0.12698716]
[1762796411338,0.04526,105720.0,105710.0,0.31564376]
[1762796411548,0.2338971,105740.0,105730.0,0.0564]
[1762796411843,0.2338971,105740.0,105730.0,0.05859803]
[1762796412349,0.1398809,105740.0,105730.0,0.05859803]
[1762796412542,0.2338971,105740.0,105730.0,0.05859803]
[1762796413144,0.2338971,105740.0,105730.0,0.15261423]
[1762796413346,0.2358971,105740.0,105730.0,0.15261423]
[1762796413946,0.23372867,105740.0,105730.0,0.15261423]
[1762796414343,0.23372867,105740.0,105730.0,0.24723663]
[1762796414745,0.23372867,105740.0,105730.0,0.22843758]
[1762796415544,0.23372867,105740.0,105730.0,0.22943758]
[1762796415741,0.32774487,105740.0,105730.0,0.13542138]
[1762796415950,0.33437487,105740.0,105730.0,0.13542138]
[1762796417655,0.32774487,105740.0,105730.0,0.13542138]
[1762796418354,0.32774487,105740.0,105730.0,0.23004378]
[1762796418555,0.23372867,105740.0,105730.0,0.23004378]
[1762796418753,0.1392762,105740.0,105730.0,0.32405998]
[1762796419147,0.04526,105740.0,105730.0,0.32405998]
[1762796419455,0.1392762,105740.0,105730.0,0.39130665]
[1762796419658,0.1398735,105740.0,105730.0,0.29729045]
[1762796419949,0.1389182,105750.0,105740.0,0.05689]
[1762796420156,0.2329344,105750.0,105740.0,0.05908803]
[1762796420356,0.1389182,105750.0,105740.0,0.15370153]
[1762796420545,0.2329344,105750.0,105740.0,0.15370153]
[1762796421149,0.2329344,105750.0,105740.0,0.05908803]
[1762796424159,0.2329344,105750.0,105740.0,0.15370153]
[1762796425068,0.2329307,105750.0,105740.0,0.15370153]
[1762796425257,0.2329307,105750.0,105740.0,0.05908803]
[1762796426255,0.2329307,105750.0,105740.0,0.15370153]
[1762796426646,0.1389145,105750.0,105740.0,0.05908803]
[1762796426852,0.23288125,105750.0,105740.0,0.05908803]
[1762796427056,0.1389145,105750.0,105740.0,0.15370153]
[1762796427261,0.23288125,105750.0,105740.0,0.15370153]
[1762796427654,0.23288125,105750.0,105740.0,0.05908803]
[1762796427959,0.23288125,105750.0,105740.0,0.15370153]
[1762796430062,0.23288125,105750.0,105740.0,0.05908803]
[1762796432060,0.23968125,105750.0,105740.0,0.02359803]
[1762796432260,0.1389235,105740.0,105730.0,0.13373581]
[1762796432461,0.23952025,105740.0,105730.0,0.00234049]
[1762796432765,0.23952025,105740.0,105730.0,0.00014246]
[1762796434256,0.1455535,105740.0,105730.0,0.06023049]
[1762796434458,0.23289025,105740.0,105730.0,0.06023049]
[1762796434658,0.23952025,105740.0,105730.0,0.00334049]
[1762796434858,0.23952025,105740.0,105730.0,0.00114246]
[1762796438065,0.1389235,105740.0,105730.0,0.15485299]
[1762796438260,0.23289025,105740.0,105730.0,0.06023049]
[1762796438469,0.23952025,105740.0,105730.0,0.00334049]
[1762796439168,0.23952025,105740.0,105730.0,0.00114246]
[1762796442265,0.23289025,105740.0,105730.0,0.15485299]
[1762796443570,0.18857715,105750.0,105740.0,0.1072108]
[1762796443873,0.23288715,105750.0,105740.0,0.15369883]
[1762796444267,0.1389204,105750.0,105740.0,0.15369883]
[1762796444775,0.23288715,105750.0,105740.0,0.15369883]
[1762796444959,0.1389204,105750.0,105740.0,0.15369883]
[1762796445770,0.23288715,105750.0,105740.0,0.15369883]
[1762796446370,0.23288715,105750.0,105740.0,0.2209455]
[1762796446570,0.04431,105750.0,105740.0,0.15469883]
[1762796446871,0.1389146,105750.0,105740.0,0.15469883]
[1762796447468,0.23287735,105760.0,105750.0,0.1514946]
[1762796447672,0.1388961,105780.0,105770.0,0.05689]
[1762796447866,0.23286285,105780.0,105770.0,0.05908803]
[1762796449071,0.23286285,105780.0,105770.0,0.15367473]
[1762796449072,0.23285445,105780.0,105770.0,0.15367473]
[1762796449373,0.1388877,105780.0,105770.0,0.15367473]
[1762796449767,0.23285445,105780.0,105770.0,0.05908803]
[1762796450169,0.23285445,105780.0,105770.0,0.07171975]
[1762796450370,0.23285445,105780.0,105770.0,0.07271975]
[1762796451772,0.23965445,105780.0,105770.0,0.01582975]
[1762796452070,0.1456877,105780.0,105770.0,0.01582975]
[1762796452375,0.23965445,105780.0,105770.0,0.01582975]
[1762796453663,0.3336212,105780.0,105770.0,0.00319803]
[1762796454474,0.23965445,105780.0,105770.0,0.00319803]
[1762796456877,0.3336212,105780.0,105770.0,0.01297735]
[1762796457079,0.3336212,105780.0,105770.0,0.001]
[1762796457870,0.1403069,105770.0,105760.0,0.00014246]
[1762796458178,0.23694365,105770.0,105760.0,0.00014246]
[1762796458378,0.23694365,105770.0,105760.0,0.01256581]
[1762796459078,0.1429769,105770.0,105760.0,0.01456581]
[1762796459274,0.23694365,105770.0,105760.0,0.01456581]
[1762796459475,0.23694365,105770.0,105760.0,0.01676384]
[1762796460873,0.23427365,105770.0,105760.0,0.16904964]
[1762796462082,0.094569,105790.0,105760.0,0.16904964]
[1762796462276,0.23395575,105790.0,105780.0,0.05769]
[1762796462476,0.23395575,105790.0,105780.0,0.15446583]
[1762796464986,0.140989,105790.0,105780.0,0.05988803]
[1762796465486,0.1409889,105790.0,105780.0,0.15446583]
[1762796465676,0.1409889,105790.0,105780.0,0.04692803]
[1762796465876,0.1399978,105780.0,105770.0,0.05769]
[1762796466187,0.31481577,105780.0,105770.0,0.02550803]
[1762796466387,0.1399978,105780.0,105770.0,0.05988803]
[1762796466782,0.31214577,105780.0,105770.0,0.05988803]
[1762796467181,0.31481577,105780.0,105770.0,0.00219803]
[1762796467586,0.1400068,105770.0,105760.0,0.07025581]
[1762796467786,0.1400068,105770.0,105760.0,0.07245384]
[1762796468880,0.1400068,105770.0,105760.0,0.07345384]
[1762796469286,0.31895477,105770.0,105760.0,0.06049384]
[1762796469487,0.31895477,105770.0,105760.0,0.01576384]
[1762796469680,0.31895477,105770.0,105760.0,0.00334049]
[1762796469880,0.31895477,105770.0,105760.0,0.06103049]
[1762796470190,0.31215477,105770.0,105760.0,0.06103049]
[1762796470484,0.1400068,105770.0,105760.0,0.15562619]
[1762796470684,0.0945868,105770.0,105760.0,0.06103049]
[1762796470876,0.1173168,105770.0,105760.0,0.15562619]
[1762796471082,0.1400068,105770.0,105760.0,0.15562619]
[1762796471280,0.1400037,105780.0,105770.0,0.1522768]
[1762796471490,0.1400037,105780.0,105770.0,0.15447483]
[1762796471991,0.1400037,105780.0,105770.0,0.05988803]
[1762796472491,0.1173052,105790.0,105780.0,0.05769]
[1762796472690,0.1399952,105790.0,105780.0,0.05988803]
[1762796474390,0.1409952,105790.0,105780.0,0.05988803]
[1762796478592,0.31314317,105790.0,105780.0,0.05988803]
[1762796479892,0.31314317,105790.0,105770.0,0.08948857]
[1762796479893,0.1376378,105780.0,105770.0,0.05681]
[1762796480093,0.30978577,105780.0,105770.0,0.05900803]
[1762796480296,0.31245577,105780.0,105770.0,0.04604803]
[1762796480884,0.1376378,105780.0,105770.0,0.05984803]
[1762796481890,0.1403078,105780.0,105770.0,0.04604803]
[1762796482093,0.1376468,105770.0,105760.0,0.06938445]
[1762796482394,0.1376468,105770.0,105760.0,0.07158248]
[1762796483490,0.1376468,105770.0,105760.0,0.07258248]
[1762796483987,0.30979477,105770.0,105760.0,0.07258248]
[1762796484387,0.1376468,105770.0,105760.0,0.07258248]
[1762796488696,0.30979477,105770.0,105760.0,0.07258248]
[1762796488900,0.26187946,105770.0,105760.0,0.07258248]
[1762796489294,0.26187946,105770.0,105760.0,0.05962248]
[1762796489593,0.26187946,105770.0,105760.0,0.03849248]
[1762796490498,0.26187946,105770.0,105760.0,0.01577248]
[1762796493102,0.26187946,105770.0,105760.0,0.03849248]
[1762796493999,0.26187946,105770.0,105760.0,0.01577248]
[1762796494294,0.26187946,105770.0,105760.0,0.00114246]
[1762796495298,0.58951946,105770.0,105760.0,0.00114246]
[1762796496003,0.26187946,105770.0,105760.0,0.00114246]
[1762796496498,0.26187946,105770.0,105760.0,0.01354881]
[1762796496701,0.26187946,105770.0,105760.0,0.00114246]
[1762796497495,0.1376645,105750.0,105740.0,0.05765]
[1762796497700,0.25509716,105750.0,105740.0,0.05984803]
[1762796498091,0.25509716,105750.0,105740.0,0.04604803]
[1762796498697,0.25509716,105750.0,105740.0,0.06384803]
[1762796499296,0.1376645,105750.0,105740.0,0.15846143]
[1762796499496,0.1376645,105750.0,105740.0,0.15446143]
[1762796499696,0.1376645,105750.0,105740.0,0.16646673]
[1762796500292,0.13779796,105760.0,105750.0,0.05765]
[1762796500490,0.13779796,105760.0,105750.0,0.05984803]
[1762796500687,0.25523062,105760.0,105750.0,0.05984803]
[1762796501299,0.25623062,105760.0,105750.0,0.15445253]
[1762796501895,0.13879796,105760.0,105750.0,0.15445253]
[1762796502203,0.13879796,105760.0,105750.0,0.05984803]
[1762796502398,0.13879796,105760.0,105750.0,0.15445253]
[1762796502994,0.13879796,105760.0,105750.0,0.05984803]
[1762796503502,0.13879796,105760.0,105750.0,0.15445253]
[1762796503704,0.13879796,105760.0,105750.0,0.05984803]
[1762796503896,0.25623062,105760.0,105750.0,0.05984803]
[1762796504091,0.25523062,105760.0,105750.0,0.05984803]
[1762796504500,0.13779796,105760.0,105750.0,0.05984803]
[1762796504800,0.25523062,105760.0,105750.0,0.05984803]
[1762796507003,0.32574194,105760.0,105750.0,0.05984803]
[1762796507398,0.32674194,105760.0,105750.0,0.05984803]
[1762796508301,0.32674194,105760.0,105750.0,0.15445253]
[1762796509308,0.09573796,105760.0,105750.0,0.15445253]
[1762796509600,0.09573796,105760.0,105750.0,0.24842452]
[1762796509811,0.00114246,105760.0,105750.0,0.24842452]
[1762796509998,0.09573796,105760.0,105750.0,0.24842452]
[1762796510307,0.11618796,105760.0,105750.0,0.24842452]
[1762796510501,0.11618796,105760.0,105750.0,0.15445253]
[1762796510803,0.11618796,105760.0,105750.0,0.24842452]
[1762796511004,0.00014246,105760.0,105750.0,0.2216992]
[1762796511201,0.00014246,105760.0,105750.0,0.34011585]
[1762796514403,0.00014246,105760.0,105750.0,0.2226992]
[1762796514598,0.00014246,105760.0,105750.0,0.15545253]
[1762796515006,0.00014246,105760.0,105750.0,0.2226992]
[1762796515199,0.02273,105790.0,105780.0,0.1077578]
[1762796515397,0.02273,105790.0,105780.0,0.06037803]
[1762796515398,0.1172988,105790.0,105780.0,0.06037803]
[1762796515709,0.1385888,105790.0,105780.0,0.06037803]
[1762796516005,0.25600545,105790.0,105780.0,0.04719803]
[1762796516194,0.25600545,105790.0,105780.0,0.06037803]
[1762796516398,0.25800545,105790.0,105780.0,0.06037803]
[1762796517508,0.25800525,105790.0,105780.0,0.15495553]
[1762796517807,0.1405886,105790.0,105780.0,0.15495553]
[1762796518307,0.1192986,105790.0,105780.0,0.15495553]
[1762796518709,0.1405886,105790.0,105780.0,0.15495553]
[1762796519705,0.1192986,105790.0,105780.0,0.15495553]
[1762796519901,0.1405886,105790.0,105780.0,0.15495553]
[1762796522709,0.04602,105790.0,105780.0,0.15495553]
[1762796523015,0.0965686,105790.0,105780.0,0.15495553]
[1762796523402,0.002,105790.0,105780.0,0.27237218]
[1762796523805,0.00023628,105800.0,105790.0,0.1527486]
[1762796524104,0.26124401,105820.0,105810.0,0.05818]
[1762796524306,0.15045736,105820.0,105810.0,0.06037803]
[1762796524512,0.26787401,105820.0,105810.0,0.02519803]
[1762796524708,0.1385707,105810.0,105800.0,0.05832177]
[1762796524917,0.1385707,105810.0,105800.0,0.0605198]
[1762796525511,0.26545735,105810.0,105800.0,0.0253398]
[1762796525912,0.26545735,105810.0,105800.0,0.00014177]
[1762796526213,0.1449386,105790.0,105780.0,0.023]
[1762796526517,0.1384486,105790.0,105780.0,0.06037803]
[1762796527305,0.25586525,105790.0,105780.0,0.00219803]
[1762796527511,0.1384575,105780.0,105770.0,0.05832177]
[1762796527708,0.26250415,105780.0,105770.0,0.0023398]
[1762796528212,0.26250415,105780.0,105770.0,0.00014177]
[1762796529415,0.1476565,105770.0,105760.0,0.00010884]
[1762796529611,0.26507315,105770.0,105760.0,0.00010884]
[1762796531608,0.1446054,105760.0,105750.0,0.00014177]
[1762796531810,0.26202205,105760.0,105750.0,0.00014177]
[1762796532215,0.26202205,105760.0,105750.0,0.0023398]
[1762796532616,0.26210232,105760.0,105750.0,0.0023398]
[1762796532816,0.26210232,105760.0,105750.0,0.0043398]
[1762796533323,0.37951897,105760.0,105750.0,7e-08]
[1762796533616,0.37951897,105760.0,105720.0,0.01318]
[1762796533617,0.1462322,105730.0,105720.0,0.01178617]
[1762796533814,0.25577769,105730.0,105720.0,0.06037803]
[1762796534217,0.13836104,105730.0,105720.0,0.06037803]
[1762796534419,0.25577769,105730.0,105720.0,0.06037803]
[1762796534620,0.13836104,105730.0,105720.0,0.06037803]
[1762796535125,0.25577769,105730.0,105720.0,0.06037803]
[1762796535319,0.13836104,105730.0,105720.0,0.06037803]
[1762796536026,0.25577769,105730.0,105720.0,0.06037803]
[1762796536323,0.25577769,105730.0,105720.0,0.01363678]
[1762796536720,0.04373884,105730.0,105720.0,0.07181678]
[1762796536918,0.13836134,105730.0,105720.0,0.07181678]
[1762796537318,0.13836134,105730.0,105720.0,0.16644828]
[1762796537915,0.13836134,105730.0,105720.0,0.07181678]
[1762796538116,0.13836134,105730.0,105720.0,0.16644818]
[1762796538817,0.13836134,105730.0,105720.0,0.07181678]
[1762796540127,0.13836134,105730.0,105720.0,0.01363678]
[1762796540128,0.25577799,105730.0,105720.0,0.01363678]
[1762796540625,0.25577799,105730.0,105720.0,0.00219803]
[1762796540827,0.1382614,105720.0,105710.0,0.06830885]
[1762796541033,0.25567805,105720.0,105710.0,0.07050688]
[1762796542120,0.26205805,105720.0,105710.0,0.01521688]
[1762796543825,0.26205805,105720.0,105710.0,0.0033398]
[1762796544025,0.26205805,105720.0,105710.0,0.00114177]
[1762796544325,0.1382704,105710.0,105700.0,0.00010133]
[1762796544532,0.26377589,105710.0,105700.0,0.00229936]
[1762796545529,0.26377589,105710.0,105700.0,0.00429936]
[1762796545929,0.26377589,105710.0,105700.0,0.01574137]
[1762796546733,0.26377589,105710.0,105700.0,0.03715137]
[1762796547033,0.26377589,105710.0,105700.0,0.05885137]
[1762796547424,0.26377589,105710.0,105700.0,0.03715137]
[1762796547720,0.26377589,105710.0,105700.0,0.01574137]
[1762796548124,0.26377589,105710.0,105700.0,0.00210133]
[1762796548324,0.1462594,105700.0,105690.0,0.00014177]
[1762796548532,0.1382794,105700.0,105690.0,0.0592298]
[1762796548732,0.25569605,105700.0,105690.0,0.0592298]
[1762796548933,0.1382794,105700.0,105690.0,0.1538881]
[1762796549525,0.13838694,105710.0,105700.0,0.05689]
[1762796549721,0.13838694,105710.0,105700.0,0.05908803]
[1762796549924,0.25580359,105710.0,105700.0,0.05908803]
[1762796550734,0.25580359,105710.0,105700.0,0.16529557]
[1762796550931,0.13838694,105710.0,105700.0,0.16529557]
[1762796551131,0.09475694,105710.0,105700.0,0.16529557]
[1762796551529,0.11709694,105710.0,105700.0,0.16529557]
[1762796551729,0.00010884,105710.0,105700.0,0.16529557]
[1762796551938,0.09474924,105710.0,105700.0,0.16529557]
[1762796552330,0.00010884,105710.0,105700.0,0.16529557]
[1762796553940,0.00010884,105710.0,105700.0,0.33770294]
[1762796554237,0.00014177,105720.0,105710.0,0.1515304]
[1762796554439,1e-08,105720.0,105710.0,0.15372843]
[1762796555437,0.00010134,105720.0,105710.0,0.15372843]
[1762796556340,0.00210134,105720.0,105710.0,0.15372843]
[1762796556541,0.00210134,105720.0,105710.0,0.05908803]
[1762796557337,0.21691737,105750.0,105740.0,0.05689]
[1762796557538,0.21691737,105750.0,105740.0,0.05908803]
[1762796559641,0.22191737,105750.0,105740.0,0.05908803]
[1762796562048,0.04951,105750.0,105740.0,0.05908803]
[1762796562243,0.22191737,105750.0,105740.0,0.05908803]
[1762796562440,0.04951,105750.0,105740.0,0.05908803]
[1762796565547,0.22191737,105750.0,105740.0,0.05908803]
[1762796565749,0.04951,105750.0,105740.0,0.05908803]
[1762796567753,0.22191737,105750.0,105740.0,0.05908803]
[1762796570655,0.04951,105750.0,105740.0,0.05908803]
[1762796573456,0.1441142,105750.0,105740.0,0.05908803]
[1762796573754,0.31652157,105750.0,105740.0,0.05908803]
[1762796574856,0.23809267,105750.0,105740.0,0.05908803]
[1762796579958,0.33207114,105750.0,105740.0,0.05908803]
[1762796580357,0.23809267,105750.0,105740.0,0.05908803]
[1762796580559,0.1441142,105750.0,105740.0,0.05908803]
[1762796580852,0.23809267,105750.0,105740.0,0.05908803]
[1762796581269,0.23809267,105750.0,105740.0,0.15370113]
[1762796581450,0.23809267,105750.0,105740.0,0.05908803]
[1762796582157,0.24607267,105750.0,105740.0,0.04530803]
[1762796582350,0.34005114,105750.0,105740.0,0.04530803]
[1762796582553,0.24607267,105750.0,105740.0,0.04530803]
[1762796582761,0.34005114,105750.0,105740.0,0.04530803]
[1762796582956,0.34005114,105750.0,105740.0,0.00219803]
[1762796583451,0.34005114,105750.0,105740.0,0.02457803]
[1762796584054,0.34005114,105750.0,105740.0,0.04606803]
[1762796584664,0.34005114,105750.0,105740.0,0.05914803]
[1762796585351,0.34005114,105750.0,105740.0,0.00219803]
[1762796585661,0.1488931,105740.0,105730.0,0.11122744]
[1762796585957,0.24287157,105740.0,105730.0,0.00014177]
[1762796586156,0.24287157,105740.0,105730.0,0.0247198]
[1762796586357,0.23279157,105740.0,105730.0,0.12650547]
[1762796586757,0.0482,105740.0,105730.0,0.22112747]
[1762796586957,0.004,105740.0,105730.0,0.22112747]
[1762796587156,0.19259157,105740.0,105730.0,0.12650547]
[1762796587358,0.23679157,105740.0,105730.0,0.12650547]
[1762796591971,0.24477157,105740.0,105730.0,0.06955547]
[1762796592166,0.24477157,105740.0,105730.0,0.00014177]
[1762796594167,0.26678121,105740.0,105730.0,0.00014177]
[1762796594365,0.26678121,105740.0,105730.0,7e-08]
[1762796594565,0.148911,105720.0,105710.0,0.11108567]
[1762796594767,0.33686794,105720.0,105710.0,0.1132837]
[1762796595064,0.138831,105720.0,105710.0,0.2210036]
[1762796595268,0.138827,105730.0,105720.0,0.03457]
[1762796595571,0.23280547,105730.0,105720.0,0.05914803]
[1762796595764,0.23280547,105730.0,105720.0,0.15377903]
[1762796596072,0.23280547,105730.0,105720.0,0.05914803]
[1762796596463,0.23480547,105730.0,105720.0,0.05914803]
[1762796607467,0.24488547,105730.0,105720.0,0.04662803]
[1762796609880,0.24488547,105730.0,105720.0,0.00219803]
[1762796610876,0.04397,105720.0,105710.0,0.05629177]
[1762796611078,0.33453794,105720.0,105710.0,0.0233598]
[1762796611272,0.33453794,105720.0,105710.0,0.0023398]
[1762796611478,0.33453794,105720.0,105710.0,0.00014177]
[1762796612077,0.33453794,105720.0,105710.0,0.0023398]
[1762796612380,0.33553794,105720.0,105710.0,0.0454098]
[1762796612979,0.33568704,105720.0,105710.0,0.0454098]
[1762796615781,0.42974006,105720.0,105710.0,0.0454098]
[1762796617272,0.42974006,105720.0,105710.0,0.0233598]
[1762796618176,0.42974006,105720.0,105710.0,0.0023398]
[1762796619580,0.42974006,105720.0,105710.0,0.00014177]
[1762796620679,0.45185445,105720.0,105710.0,0.00014177]
[1762796620878,0.1449899,105710.0,105700.0,0.02102]
[1762796621074,0.33309594,105710.0,105700.0,0.02102]
[1762796621478,0.33309594,105710.0,105700.0,0.04307]
[1762796621971,0.33309594,105710.0,105700.0,0.04526803]
[1762796622876,0.33309594,105710.0,105700.0,0.05626399]
[1762796623381,0.04411177,105720.0,105710.0,0.01369]
[1762796623578,0.23279579,105720.0,105710.0,0.05895803]
[1762796623770,0.13874277,105720.0,105710.0,0.05895803]
[1762796623970,0.32684881,105720.0,105710.0,0.05895803]
[1762796625482,0.32784881,105720.0,105710.0,0.05895803]
[1762796626579,0.09577277,105720.0,105710.0,0.22091499]
[1762796626780,0.23379579,105720.0,105710.0,0.15359793]
[1762796626969,0.23379579,105720.0,105710.0,0.22091499]
[1762796627176,0.32784881,105720.0,105710.0,0.22091499]
[1762796627581,0.23379579,105720.0,105710.0,0.22091499]
[1762796627877,0.32784881,105720.0,105710.0,0.12627509]
[1762796628078,0.32784881,105720.0,105710.0,0.22091499]
[1762796628871,0.32784881,105720.0,105710.0,0.12627509]
[1762796629272,0.32784881,105720.0,105710.0,0.05895803]
[1762796634285,0.43198183,105720.0,105700.0,0.01099596]
[1762796634486,0.1456089,105700.0,105690.0,0.00014177]
[1762796634684,0.33371494,105700.0,105690.0,0.00014177]
[1762796634890,0.1392289,105700.0,105690.0,0.0578998]
[1762796635082,0.32733494,105700.0,105690.0,0.0578998]
[1762796635890,0.32733494,105700.0,105690.0,0.06894776]
[1762796636293,0.32733494,105700.0,105690.0,0.06994776]
[1762796637893,0.65517494,105700.0,105690.0,0.06994776]
[1762796638194,0.65517494,105700.0,105690.0,0.03549776]
[1762796638396,0.33371494,105700.0,105690.0,0.05720776]
[1762796638594,0.66151494,105700.0,105690.0,0.05720776]
[1762796641197,0.66151494,105700.0,105690.0,0.06994776]
[1762796641387,0.32733494,105700.0,105690.0,0.16460546]
[1762796641583,0.65509494,105700.0,105690.0,0.16460546]
[1762796641999,0.32733494,105700.0,105690.0,0.16460546]
[1762796642192,0.32733494,105700.0,105690.0,0.06994776]
[1762796644198,0.32733494,105700.0,105690.0,0.16460546]
[1762796644695,0.09464,105710.0,105690.0,0.25865848]
[1762796644898,0.13922,105710.0,105700.0,0.05556]
[1762796645203,0.23327302,105710.0,105700.0,0.05775803]
[1762796651691,0.32732604,105710.0,105700.0,0.05775803]
[1762796651897,0.23327302,105710.0,105700.0,0.05775803]
[1762796652196,0.13922,105710.0,105700.0,0.15240673]
[1762796652501,0.23327302,105710.0,105700.0,0.15240673]
[1762796654400,0.11702277,105720.0,105710.0,0.1501917]
[1762796654606,0.32745881,105720.0,105710.0,0.12507509]
[1762796655605,0.32745881,105720.0,105710.0,0.21970649]
[1762796655804,0.32845881,105720.0,105710.0,0.21970649]
[1762796656306,0.23440579,105720.0,105710.0,0.21970649]
[1762796657203,0.32845881,105720.0,105710.0,0.21970649]
[1762796658507,0.32845881,105720.0,105710.0,0.12507509]
[1762796658807,0.23440579,105720.0,105710.0,0.21970649]
[1762796661213,0.23440579,105720.0,105710.0,0.15238943]
[1762796665514,0.32845881,105720.0,105710.0,0.15238943]
[1762796665811,0.32845881,105720.0,105710.0,0.21970649]
[1762796666312,0.32845881,105720.0,105710.0,0.12507509]
[1762796666611,0.32845881,105720.0,105710.0,0.21970649]
[1762796666812,0.32845881,105720.0,105710.0,0.12507509]
[1762796667209,0.32845881,105720.0,105710.0,0.21970649]
[1762796674922,0.00114177,105720.0,105710.0,0.21970649]
[1762796675110,0.04511177,105720.0,105710.0,0.21970649]
[1762796675310,0.13912618,105720.0,105710.0,0.21970649]
[1762796675609,0.23374868,105720.0,105710.0,0.21970649]
[1762796675811,0.23374868,105720.0,105710.0,0.12507509]
[1762796676314,0.32776309,105720.0,105710.0,0.21970649]
[1762796676505,0.23374868,105720.0,105710.0,0.12507509]
[1762796676713,0.23374868,105720.0,105710.0,0.21970649]
[1762796677517,0.13912618,105720.0,105710.0,0.21970649]
[1762796678505,0.23374868,105720.0,105710.0,0.21970649]
[1762796678710,0.13912618,105720.0,105710.0,0.21970649]
[1762796679321,0.23374868,105720.0,105710.0,0.21970649]
[1762796680112,0.23374868,105720.0,105710.0,0.12507509]
[1762796680314,0.23374868,105720.0,105710.0,0.05775803]
[1762796681021,0.23374868,105720.0,105710.0,0.15238943]
[1762796682128,0.23374868,105720.0,105710.0,0.23653576]
[1762796682509,0.13912618,105720.0,105710.0,0.23653576]
[1762796682718,0.04511177,105720.0,105710.0,0.23653576]
[1762796682916,0.13912618,105720.0,105710.0,0.23653576]
[1762796683116,0.23374868,105720.0,105710.0,0.14190436]
[1762796683718,0.33784309,105720.0,105710.0,0.02330803]
[1762796684115,0.33784309,105720.0,105710.0,0.04520803]
[1762796684316,0.32776309,105720.0,105710.0,0.05879803]
[1762796684625,0.32776309,105720.0,105710.0,0.15342943]
[1762796685125,0.23314059,105720.0,105710.0,0.15342943]
[1762796685325,0.13912618,105720.0,105710.0,0.22097809]
[1762796685625,0.1465481,105750.0,105740.0,0.05757]
[1762796685824,0.1465481,105750.0,105740.0,0.15437263]
[1762796685825,0.13798441,105750.0,105740.0,0.15437263]
[1762796686218,0.13798441,105750.0,105740.0,0.30599118]
[1762796686418,0.23258001,105750.0,105740.0,0.12724025]
[1762796686818,0.23758001,105750.0,105740.0,0.12724025]
[1762796687021,0.23758001,105750.0,105740.0,0.22184485]
[1762796687218,0.23758001,105750.0,105740.0,0.12724025]
[1762796687522,0.23258001,105750.0,105740.0,0.12824025]
[1762796688118,0.23258001,105750.0,105740.0,0.22284485]
[1762796688319,0.04397,105750.0,105740.0,0.22284485]
[1762796688519,0.13798441,105750.0,105740.0,0.22284485]
[1762796688720,0.23258001,105750.0,105740.0,0.22284485]